{"text_format":"1","workbook":"xlsx","n_sheets":2,"sheets":["M-10 BAJAS ÚNICO","Datos"],"not_rendered":{"charts":0,"images":3,"macros":0,"external_links":0,"defined_names":2,"comments":0,"pivot_tables":0},"unopened":[],"bounds":{"document_bytes":16777216,"sheet_cells":100000,"rows_first":2000,"rows_last":500,"rows_between":2000,"halvings":0,"cell_chars":16384,"cell_head_chars":4096},"cells_cut":0,"cells_raw":0,"read":"whole","date_system":"1900"}

{"sheet":"M-10 BAJAS ÚNICO","index":0,"n_rows":35,"n_cols":14,"rows_kept":35,"cut":false,"hidden":false,"merged":[[1,0,1,2],[2,0,2,2],[1,3,1,6],[2,3,2,6],[2,10,2,12],[4,12,5,12],[4,5,5,5],[34,7,34,10],[32,7,32,10],[33,7,33,10],[4,9,5,9],[4,10,5,10],[32,0,32,4],[4,0,5,0],[4,1,5,1],[4,2,4,4],[4,11,5,11],[4,8,5,8],[4,7,5,7],[1,10,1,12],[32,11,32,12],[33,11,33,12],[34,11,34,12],[33,0,33,4],[34,0,34,4],[34,5,34,6],[33,5,33,6],[32,5,32,6],[4,6,5,6]]}
[]
["UNIDAD SOLICITANTE:",null,null,null,null,null,null,null,null,"FECHA:"]
["NUMERO DE OFICIO::",null,null,null,null,null,null,null,null,"NO. DE PAGINA","DE"]
[]
["NO.","CANTIDAD","No. DE INVENTARIO",null,null,"DESCRIPCIÓN DE BIENES ","DESCRIPCIÓN COMPLEMENTARIA","SERIE","MARCA ","MODELO ","MATERIAL"," COLOR","CAUSA/\nDIAGNOSTICO/\nESTADO "]
[null,null,"PROC","CABMS ","PROG "]
[1,null,null,null,null,null,null,null,null,null,null,null,null,{"$f":"IF(AND(D7>=\"I180000000\",D7<=\"I180099999\"),\"REQUIERE DICTAMEN\",IF(AND(D7>=\"I330000000\",D7<=\"I330099999\"),\"REQUIERE DICTAMEN\",\"\"))","v":""}]
[2,null,null,null,null,null,null,null,null,null,null,null,null,""]
[3,null,null,null,null,null,null,null,null,null,null,null,null,""]
[4,null,null,null,null,null,null,null,null,null,null,null,null,""]
[5,null,null,null,null,null,null,null,null,null,null,null,null,""]
[6,null,null,null,null,null,null,null,null,null,null,null,null,""]
[7,null,null,null,null,null,null,null,null,null,null,null,null,""]
[8,null,null,null,null,null,null,null,null,null,null,null,null,""]
[9,null,null,null,null,null,null,null,null,null,null,null,null,""]
[10,null,null,null,null,null,null,null,null,null,null,null,null,""]
[11,null,null,null,null,null,null,null,null,null,null,null,null,""]
[12,null,null,null,null,null,null,null,null,null,null,null,null,""]
[13,null,null,null,null,null,null,null,null,null,null,null,null,""]
[14,null,null,null,null,null,null,null,null,null,null,null,null,""]
[15,null,null,null,null,null,null,null,null,null,null,null,null,""]
[16,null,null,null,null,null,null,null,null,null,null,null,null,""]
[17,null,null,null,null,null,null,null,null,null,null,null,null,""]
[18,null,null,null,null,null,null,null,null,null,null,null,null,""]
[19,null,null,null,null,null,null,null,null,null,null,null,null,""]
[20,null,null,null,null,null,null,null,null,null,null,null,null,""]
[21,null,null,null,null,null,null,null,null,null,null,null,null,""]
[22,null,null,null,null,null,null,null,null,null,null,null,null,""]
[23,null,null,null,null,null,null,null,null,null,null,null,null,""]
[24,null,null,null,null,null,null,null,null,null,null,null,null,""]
[25,null,null,null,null,null,null,null,null,null,null,null,null,""]
[]
["DIRECTOR O JEFE DE LA UNIDAD",null,null,null,null,"ADMINISTRADOR DE LA UNIDAD",null,"RESPONSABLE DE INVENTARIOS DE LA UNIDAD",null,null,null,"VALIDACIÓN DE RECEPCIÓN FÍSICA DE BIENES \nCENTRO DE ACOPIO\nDEPTO. DE INVENTARIOS GTO."]
["NOMBRE: ",null,null,null,null,"NOMBRE: ",null,"NOMBRE: ",null,null,null,"NOMBRE:"]
["FIRMA Y SELLO DE LA UR",null,null,null,null,"FIRMA Y SELLO DE LA UR",null,"FIRMA Y SELLO DE LA UR",null,null,null,"FIRMA Y SELLO  DEL DEPARTAMENTO DE INVENTARIOS "]

{"sheet":"Datos","index":1,"n_rows":5,"n_cols":2,"rows_kept":5,"cut":false,"hidden":true,"merged":[]}
[]
[]
[null,"INSERVIBLE"]
[null,"INCOSTEABLE"]
[null,"INÚTIL"]